fUSD/lending_fUSD_20240425
["ID","MTS","AMOUNT","RATE_DAILY","PERIOD"]
[323504909,1714057846890,-525.7983089,0.00010999,2]
[323504910,1714057846899,-500.0,0.00010999,2]
[323504911,1714057846909,-576.46,0.00010999,2]
[323504912,1714057846918,-500.0,0.00010999,2]
[323504913,1714057846927,-500.0,0.00010999,2]
[323504914,1714057846937,-500.0,0.00010999,2]
[323504915,1714057846946,-500.0,0.00010999,2]
[323504916,1714057846955,-500.0,0.00010999,2]
[323504917,1714057846965,-505.84627064,0.00010999,2]
[323504918,1714057846975,-501.21442175,0.00010999,2]
[323504919,1714057846985,-500.0,0.00010999,2]
[323504920,1714057846995,-500.0,0.00010999,2]
[323504921,1714057847004,-522.96624578,0.00010999,2]
[323504922,1714057847013,-500.0,0.00010999,2]
[323504923,1714057847022,-500.0,0.00010999,2]
[323504924,1714057847032,-500.0,0.00010999,2]
[323504925,1714057847041,-602.15,0.00010999,2]
[323504926,1714057847050,-500.0,0.00010999,2]
[323504927,1714057847060,-500.0,0.00010999,2]
[323504928,1714057847069,-500.0,0.00010999,2]
[323504929,1714057847079,-904.46,0.00010999,2]
[323504930,1714057847088,-500.0,0.00010999,2]
[323504931,1714057847097,-500.0,0.00010999,2]
[323504932,1714057847106,-500.0,0.00010999,2]
[323504933,1714057847115,-500.0,0.00010999,2]
[323504934,1714057847124,-500.0,0.00010999,2]
[323504935,1714057847135,-500.0,0.00010999,2]
[323504936,1714057847143,-1037.93,0.00010999,2]
[323504937,1714057847153,-500.0,0.00010999,2]
[323504938,1714057847162,-500.0,0.00010999,2]
[323504939,1714057847171,-439.38,0.00010999,2]
[323504940,1714057847180,-500.0,0.00010999,2]
[323504941,1714057847189,-440.23,0.00010999,2]
[323504942,1714057847199,-500.0,0.00010999,2]
[323504943,1714057847208,-500.0,0.00010999,2]
[323504944,1714057847218,-500.0,0.00010999,2]
[323504945,1714057847227,-500.0,0.00010999,2]
[323504946,1714057847236,-535.87,0.00010999,2]
[323504947,1714057847246,-500.0,0.00010999,2]
[323504949,1714057847255,-500.0,0.00010999,2]
[323504950,1714057847264,-500.0,0.00010999,2]
[323504951,1714057847273,-372.17,0.00010999,2]
[323504952,1714057847282,-500.0,0.00010999,2]
[323504953,1714057847291,-500.0,0.00010999,2]
[323504954,1714057847300,-500.0,0.00010999,2]
[323504955,1714057847310,-500.0,0.00010999,2]
[323504956,1714057847319,-500.0,0.00010999,2]
[323504957,1714057847328,-500.0,0.00010999,2]
[323504958,1714057847337,-504.08048016,0.00010999,2]
[323504959,1714057847347,-500.0,0.00010999,2]
[323504960,1714057847356,-500.0,0.00010999,2]
[323504961,1714057847365,-500.0,0.00010999,2]
[323504962,1714057847374,-500.0,0.00010999,2]
[323504963,1714057847385,-500.0,0.00010999,2]
[323504964,1714057847396,-500.0,0.00010999,2]
[323504965,1714057847405,-563.84,0.00010999,2]
[323504966,1714057847414,-500.0,0.00010999,2]
[323504967,1714057847423,-500.0,0.00010999,2]
[323504968,1714057847434,-782.49,0.00010999,2]
[323504969,1714057847444,-500.0,0.00010999,2]
[323504970,1714057847453,-318.57099991,0.00010999,2]
[323504971,1714057847463,-500.0,0.00010999,2]
[323504972,1714057847474,-500.38,0.00010999,2]
[323504973,1714057847483,-500.0,0.00010999,2]
[323504974,1714057847492,-1014.57,0.00010999,2]
[323504975,1714057847502,-500.0,0.00010999,2]
[323504976,1714057847512,-582.55,0.00010999,2]
[323504977,1714057847523,-500.0,0.00010999,2]
[323504978,1714057847533,-500.0,0.00010999,2]
[323504979,1714057847543,-509.67,0.00010999,2]
[323504980,1714057847554,-500.0,0.00010999,2]
[323504981,1714057847566,-500.0,0.00010999,2]
[323504982,1714057847575,-500.0,0.00010999,2]
[323504983,1714057847586,-500.0,0.00010999,2]
[323504984,1714057847595,-500.0,0.00010999,2]
[323504985,1714057847605,-500.0,0.00010999,2]
[323504986,1714057847616,-500.0,0.00010999,2]
[323504987,1714057847625,-157.87086375,0.00010999,2]
[323504988,1714057847637,-285.34,0.00010999,2]
[323504989,1714057847647,-500.0,0.00010999,2]
[323504990,1714057847659,-500.0,0.00010999,2]
[323504991,1714057847668,-510.00209836,0.00010999,2]
[323504992,1714057847677,-621.89,0.00010999,2]
[323504993,1714057847686,-500.0,0.00010999,2]
[323504994,1714057847695,-500.0,0.00010999,2]
[323504995,1714057847705,-500.0,0.00010999,2]
[323504996,1714057847714,-371.69542284,0.00010999,2]
[323504997,1714057847723,-500.0,0.00010999,2]
[323504998,1714057847733,-500.0,0.00010999,2]
[323504999,1714057847742,-500.0,0.00010999,2]
[323505000,1714057847751,-500.0,0.00010999,2]
[323505001,1714057847761,-500.0,0.00010999,2]
[323505002,1714057847770,-501.6464326,0.00010999,2]
[323505003,1714057847779,-500.0,0.00010999,2]
[323505004,1714057847789,-518.22,0.00010999,2]
[323505005,1714057847798,-500.0,0.00010999,2]
[323505006,1714057847808,-500.0,0.00010999,2]
[323505007,1714057847978,-500.0,0.00010999,2]
[323505008,1714057847988,-500.0,0.00010999,2]
[323505009,1714057847997,-500.0,0.00010999,2]
[323505010,1714057848008,-500.0,0.00010999,2]
[323505011,1714057848017,-500.0,0.00010999,2]
[323505012,1714057848027,-603.06,0.00010999,2]
[323505013,1714057848036,-500.0,0.00010999,2]
[323505014,1714057848046,-500.0,0.00010999,2]
[323505015,1714057848056,-1160.94,0.00010999,2]
[323505016,1714057848065,-500.0,0.00010999,2]
[323505017,1714057848074,-500.0,0.00010999,2]
[323505018,1714057848084,-500.0,0.00010999,2]
[323505019,1714057848094,-500.0,0.00010999,2]
[323505020,1714057848104,-500.0,0.00010999,2]
[323505021,1714057848114,-500.0,0.00010999,2]
[323505022,1714057848124,-500.0,0.00010999,2]
[323505023,1714057848135,-674.78,0.00010999,2]
[323505024,1714057848144,-500.0,0.00010999,2]
[323505025,1714057848155,-500.0,0.00010999,2]
[323505026,1714057848165,-5550.60334011,0.00011,2]
[323505027,1714057848175,-150.99,0.00011,2]
[323505028,1714057848185,-499.99,0.00011037,2]
[323505029,1714057848194,-156.62,0.00011043,2]
[323505030,1714057848204,-150.0,0.00011051,2]
[323505031,1714057848213,-938.65,0.000111,2]
[323505032,1714057848222,-160.5,0.000111,2]
[323505033,1714057848232,-150.0,0.00011121,2]
[323505034,1714057848242,-3512.13,0.00011173,2]
[323505035,1714057848251,-150.0,0.00011191,2]
[323505036,1714057848261,-150.99,0.00011206,2]
[323505037,1714057848270,-150.0,0.00011261,2]
[323505038,1714057848279,-648.55,0.00011271,2]
[323505039,1714057848289,-500.0,0.00011271,2]
[323505040,1714057848298,-1496.97,0.00011271,2]
[323505041,1714057848308,-500.0,0.00011271,2]
[323505042,1714057848317,-500.0,0.00011271,2]
[323505043,1714057848327,-500.0,0.00011271,2]
[323505044,1714057848336,-713.38,0.00011271,2]
[323505045,1714057848346,-6765.34,0.00011271,2]
[323505046,1714057848355,-500.0,0.00011271,2]
[323505047,1714057848365,-1124.53,0.00011271,2]
[323505048,1714057848374,-500.0,0.00011271,2]
[323505049,1714057848389,-640.15,0.00011271,2]
[323505050,1714057848399,-500.0,0.00011271,2]
[323505051,1714057848408,-500.0,0.00011271,2]
[323505052,1714057848418,-2028.39,0.00011271,2]
[323505053,1714057848429,-500.0,0.00011271,2]
[323505054,1714057848439,-500.0,0.00011271,2]
[323505055,1714057848448,-609.07,0.00011271,2]
[323505056,1714057848458,-569.32,0.00011271,2]
[323505057,1714057848468,-2801.53,0.00011271,2]
[323505058,1714057848478,-500.0,0.00011271,2]
[323505059,1714057848488,-500.0,0.00011271,2]
[323505060,1714057848498,-646.86,0.00011271,2]
[323505061,1714057848508,-5200.88,0.00011271,2]
[323505062,1714057848517,-500.0,0.00011271,2]
[323505063,1714057848526,-576.52,0.00011271,2]
[323505064,1714057848536,-500.0,0.00011271,2]
[323505065,1714057848546,-500.0,0.00011271,2]
[323505066,1714057848556,-500.0,0.00011271,2]
[323505067,1714057848565,-20227.65,0.00011271,2]
[323505068,1714057848574,-759.3,0.00011271,2]
[323505069,1714057848583,-500.0,0.00011271,2]
[323505070,1714057848593,-2256.16,0.00011271,2]
[323505071,1714057848603,-500.0,0.00011271,2]
[323505072,1714057848612,-500.0,0.00011272,2]
[323505073,1714057848622,-500.0,0.00011272,2]
[323505074,1714057848634,-500.0,0.00011272,2]
[323505075,1714057848645,-500.0,0.00011272,2]
[323505076,1714057848658,-500.0,0.00011272,2]
[323505077,1714057848667,-500.0,0.00011272,2]
[323505078,1714057848677,-500.0,0.00011272,2]
[323505079,1714057848687,-194.5,0.00011272,2]
[323505080,1714057848697,-500.0,0.00011272,2]
[323505081,1714057848707,-500.41,0.00011272,2]
[323505082,1714057848717,-601.09,0.00011272,2]
[323505083,1714057848726,-547.14658698,0.00011272,2]
[323505084,1714057848736,-500.0,0.00011272,2]
[323505085,1714057848746,-610.05,0.00011272,2]
[323505086,1714057848755,-541.37,0.00011272,2]
[323505087,1714057848765,-500.0,0.00011272,2]
[323505088,1714057848775,-500.0,0.00011272,2]
[323505089,1714057848785,-500.0,0.00011272,2]
[323505090,1714057848794,-352.3,0.00011272,2]
[323505091,1714057848804,-500.0,0.00011272,2]
[323505092,1714057848814,-500.0,0.00011272,2]
[323505093,1714057848824,-456.8287477,0.00011272,2]
[323505094,1714057848834,-1062.59,0.00011272,2]
[323505095,1714057848844,-500.0,0.00011272,2]
[323505096,1714057848853,-500.0,0.00011272,2]
[323505097,1714057848863,-500.0,0.00011272,2]
[323505098,1714057848873,-500.0,0.00011272,2]
[323505099,1714057848885,-500.0,0.00011272,2]
[323505100,1714057848895,-500.0,0.00011272,2]
[323505101,1714057848905,-563.59,0.00011272,2]
[323505102,1714057848915,-500.0,0.00011272,2]
[323505103,1714057848924,-500.0,0.00011272,2]
[323505104,1714057848934,-500.0,0.00011272,2]
[323505105,1714057848944,-500.0,0.00011272,2]
[323505106,1714057848953,-500.0,0.00011272,2]
[323505107,1714057848963,-507.25648578,0.00011272,2]
[323505108,1714057848972,-536.61,0.00011272,2]
[323505109,1714057848982,-500.0,0.00011272,2]
[323505110,1714057848992,-500.0,0.00011272,2]
[323505111,1714057849001,-500.0,0.00011272,2]
[323505112,1714057849011,-500.0,0.00011272,2]
[323505113,1714057849020,-500.0,0.00011272,2]
[323505114,1714057849034,-500.0,0.00011272,2]
[323505115,1714057849043,-500.0,0.00011272,2]
[323505116,1714057849053,-500.0,0.00011272,2]
[323505117,1714057849062,-505.3,0.00011272,2]
[323505118,1714057849072,-500.0,0.00011272,2]
[323505119,1714057849081,-630.9,0.00011272,2]
[323505120,1714057849091,-500.0,0.00011272,2]
[323505121,1714057849101,-542.3,0.00011272,2]
[323505122,1714057849111,-500.0,0.00011272,2]
[323505123,1714057849121,-500.0,0.00011272,2]
[323505124,1714057849131,-500.0,0.00011272,2]
[323505125,1714057849148,-500.0,0.00011272,2]
[323505126,1714057849158,-500.0,0.00011272,2]
[323505127,1714057849169,-534.27,0.00011272,2]
[323505128,1714057849180,-500.0,0.00011272,2]
[323505129,1714057849189,-609.97461919,0.00011272,2]
[323505130,1714057849200,-500.0,0.00011272,2]
[323505131,1714057849210,-500.0,0.00011272,2]
[323505132,1714057849220,-500.0,0.00011272,2]
[323505133,1714057849229,-500.0,0.00011272,2]
[323505134,1714057849239,-500.0,0.00011272,2]
[323505135,1714057849248,-500.0,0.00011272,2]
[323505136,1714057849257,-500.0,0.00011272,2]
[323505137,1714057849267,-500.0,0.00011272,2]
[323505138,1714057849277,-500.0,0.00011272,2]
[323505139,1714057849286,-500.0,0.00011272,2]
[323505140,1714057849297,-500.0,0.00011272,2]
[323505141,1714057849306,-500.0,0.00011272,2]
[323505142,1714057849315,-500.0,0.00011272,2]
[323505143,1714057849325,-500.0,0.00011272,2]
[323505144,1714057849334,-500.0,0.00011272,2]
[323505145,1714057849343,-150.0,0.00011272,2]
[323505146,1714057849353,-500.0,0.00011272,2]
[323505147,1714057849362,-500.0,0.00011272,2]
[323505148,1714057849372,-500.0,0.00011272,2]
[323505149,1714057849381,-569.93,0.00011272,2]
[323505150,1714057849398,-500.0,0.00011272,2]
[323505151,1714057849407,-500.0,0.00011272,2]
[323505152,1714057849417,-500.0,0.00011272,2]
[323505153,1714057849426,-500.0,0.00011272,2]
[323505154,1714057849438,-500.0,0.00011272,2]
[323505155,1714057849447,-632.08477396,0.00011272,2]
[323505156,1714057849457,-500.0,0.00011272,2]
[323505157,1714057849466,-500.0,0.00011272,2]
[323505158,1714057849476,-500.0,0.00011272,2]
[323505159,1714057849487,-500.0,0.00011272,2]
[323505160,1714057849498,-500.0,0.00011272,2]
[323505161,1714057849508,-500.0,0.00011272,2]
[323505162,1714057849517,-500.0,0.00011272,2]
[323505163,1714057849526,-500.0,0.00011272,2]
[323505164,1714057849536,-500.0,0.00011272,2]
[323505165,1714057849546,-876.88,0.00011272,2]
[323505166,1714057849555,-500.92474567,0.00011272,2]
[323505167,1714057849565,-555.16,0.00011272,2]
[323505168,1714057849574,-500.0,0.00011272,2]
[323505169,1714057849583,-500.0,0.00011272,2]
[323505170,1714057849593,-500.0,0.00011272,2]
[323505171,1714057849602,-503.18210235,0.00011272,2]
[323505172,1714057849612,-500.0,0.00011272,2]
[323505173,1714057849621,-500.0,0.00011272,2]
[323505174,1714057849630,-501.6670218,0.00011272,2]
[323505175,1714057849646,-500.0,0.00011272,2]
[323505176,1714057849655,-500.0,0.00011272,2]
[323505177,1714057849665,-500.0,0.00011272,2]
[323505178,1714057849674,-500.0,0.00011272,2]
[323505179,1714057849684,-508.38338751,0.00011272,2]
[323505180,1714057849693,-504.47925085,0.00011272,2]
[323505181,1714057849703,-473.35,0.00011272,2]
[323505182,1714057849712,-502.42176914,0.00011272,2]
[323505183,1714057849721,-150.0,0.00011272,2]
[323505184,1714057849731,-500.0,0.00011272,2]
[323505185,1714057849740,-500.0,0.00011272,2]
[323505186,1714057849749,-597.40877778,0.00011272,2]
[323505187,1714057849759,-500.0,0.00011272,2]
[323505188,1714057849768,-505.2721633,0.00011272,2]
[323505189,1714057849778,-500.0,0.00011272,2]
[323505190,1714057849787,-500.0,0.00011272,2]
[323505191,1714057849796,-508.02640855,0.00011272,2]
[323505192,1714057849805,-500.0,0.00011272,2]
[323505193,1714057849814,-500.0,0.00011272,2]
[323505194,1714057849823,-500.0,0.00011272,2]
[323505195,1714057849832,-500.0,0.00011272,2]
[323505196,1714057849841,-500.0,0.00011272,2]
[323505197,1714057849851,-500.0,0.00011272,2]
[323505198,1714057849860,-500.0,0.00011272,2]
[323505199,1714057849869,-500.0,0.00011272,2]
[323505200,1714057849879,-500.0,0.00011272,2]
[323505201,1714057849891,-500.0,0.00011272,2]
[323505202,1714057849901,-500.0,0.00011272,2]
[323505203,1714057849910,-4056.37,0.00011272,2]
[323505204,1714057849919,-500.0,0.00011272,2]
[323505205,1714057849928,-466.8761274,0.00011272,2]
[323505206,1714057849938,-500.0,0.00011272,2]
[323505207,1714057849947,-500.0,0.00011272,2]
[323505208,1714057849957,-500.0,0.00011272,2]
[323505209,1714057849967,-252.47655744,0.00011272,2]
[323505210,1714057849976,-500.0,0.00011272,2]
[323505211,1714057849985,-500.0,0.00011272,2]
[323505212,1714057849995,-500.0,0.00011272,2]
[323505213,1714057850004,-500.0,0.00011272,2]
[323505214,1714057850014,-500.0,0.00011272,2]
[323505215,1714057850023,-500.0,0.00011272,2]
[323505216,1714057850032,-500.0,0.00011272,2]
[323505217,1714057850042,-500.0,0.00011272,2]
[323505218,1714057850052,-500.0,0.00011272,2]
[323505219,1714057850061,-500.0,0.00011272,2]
[323505220,1714057850070,-500.0,0.00011272,2]
[323505221,1714057850080,-500.0,0.00011272,2]
[323505222,1714057850089,-500.0,0.00011272,2]
[323505223,1714057850099,-500.0,0.00011272,2]
[323505224,1714057850108,-500.0,0.00011272,2]
[323505225,1714057850117,-729.24,0.00011272,2]
[323505226,1714057850127,-500.0,0.00011272,2]
[323505227,1714057850139,-500.0,0.00011272,2]
[323505228,1714057850148,-500.0,0.00011272,2]
[323505229,1714057850157,-500.0,0.00011272,2]
[323505230,1714057850166,-500.0,0.00011272,2]
[323505231,1714057850179,-500.0,0.00011272,2]
[323505232,1714057850188,-274.08,0.00011272,2]
[323505233,1714057850197,-500.0,0.00011272,2]
[323505234,1714057850206,-500.0,0.00011272,2]
[323505235,1714057850215,-681.98,0.00011272,2]
[323505236,1714057850224,-500.0,0.00011272,2]
[323505237,1714057850233,-500.0,0.00011272,2]
[323505238,1714057850243,-500.0,0.00011272,2]
[323505239,1714057850253,-460.92502067,0.00011272,2]
[323505240,1714057850262,-500.0,0.00011272,2]
[323505241,1714057850271,-746.97,0.00011272,2]
[323505242,1714057850280,-678.04,0.00011272,2]
[323505243,1714057850289,-711.92,0.00011272,2]
[323505244,1714057850299,-500.0,0.00011272,2]
[323505245,1714057850308,-500.0,0.00011272,2]
[323505246,1714057850317,-500.0,0.00011272,2]
[323505247,1714057850326,-151.75452259,0.00011272,2]
[323505248,1714057850338,-760.55,0.00011272,2]
[323505249,1714057850347,-500.0,0.00011272,2]
[323505250,1714057850356,-502.85176037,0.00011272,2]
[323505251,1714057850365,-500.0,0.00011272,2]
[323505252,1714057850375,-500.0,0.00011272,2]
[323505253,1714057850390,-500.0,0.00011272,2]
[323505254,1714057850399,-580.81,0.00011272,2]
[323505255,1714057850408,-500.0,0.00011272,2]
[323505256,1714057850418,-232.49205906,0.00011272,2]
[323505257,1714057850586,-500.0,0.00011272,2]
[323505258,1714057850595,-500.0,0.00011272,2]
[323505259,1714057850605,-500.96313785,0.00011272,2]
[323505260,1714057850614,-26587.96,0.00011272,2]
[323505261,1714057850623,-500.0,0.00011272,2]
[323505262,1714057850633,-500.0,0.00011272,2]
[323505263,1714057850643,-500.0,0.00011272,2]
[323505264,1714057850652,-572.6936271,0.00011272,2]
[323505265,1714057850661,-743.34,0.00011272,2]
[323505266,1714057850671,-500.0,0.00011272,2]
[323505267,1714057850680,-500.0,0.00011272,2]
[323505268,1714057850690,-500.0,0.00011272,2]
[323505269,1714057850699,-500.0,0.00011272,2]
[323505270,1714057850709,-500.0,0.00011272,2]
[323505271,1714057850718,-1645.27,0.00011272,2]
[323505272,1714057850727,-285.81049028,0.00011272,2]
[323505273,1714057850737,-500.0,0.00011272,2]
[323505274,1714057850746,-500.0,0.00011272,2]
[323505275,1714057850755,-500.0,0.00011272,2]
[323505276,1714057850765,-500.0,0.00011272,2]
[323505277,1714057850774,-501.34,0.00011272,2]
[323505278,1714057850784,-500.0,0.00011272,2]
[323505279,1714057850793,-500.0,0.00011272,2]
[323505280,1714057850802,-500.0,0.00011272,2]
[323505281,1714057850812,-3271.15,0.00011272,2]
[323505282,1714057850821,-500.0,0.00011272,2]
[323505283,1714057850830,-460.67116417,0.00011272,2]
[323505284,1714057850839,-500.0,0.00011272,2]
[323505285,1714057850849,-500.0,0.00011272,2]
[323505286,1714057850858,-500.0,0.00011272,2]
[323505287,1714057850868,-1779.52,0.00011272,2]
[323505288,1714057850877,-500.0,0.00011272,2]
[323505289,1714057850888,-501.09331434,0.00011272,2]
[323505290,1714057850898,-500.0,0.00011272,2]
[323505291,1714057850908,-500.0,0.00011272,2]
[323505292,1714057850917,-500.0,0.00011272,2]
[323505293,1714057850927,-500.0,0.00011272,2]
[323505294,1714057850937,-722.55,0.00011272,2]
[323505295,1714057850946,-500.0,0.00011272,2]
[323505296,1714057850955,-194.52,0.00011272,2]
[323505297,1714057850965,-516.45,0.00011272,2]
[323505298,1714057850974,-521.53,0.00011272,2]
[323505299,1714057850983,-757.17,0.00011272,2]
[323505300,1714057850992,-600.23932727,0.00011272,2]
[323505301,1714057851002,-500.0,0.00011272,2]
[323505302,1714057851011,-500.0,0.00011272,2]
[323505303,1714057851020,-501.16869975,0.00011272,2]
[323505304,1714057851029,-500.0,0.00011272,2]
[323505305,1714057851038,-166.44,0.00011272,2]
[323505306,1714057851048,-500.0,0.00011272,2]
[323505307,1714057851057,-500.0,0.00011272,2]
[323505308,1714057851066,-500.0,0.00011272,2]
[323505309,1714057851075,-500.0,0.00011272,2]
[323505310,1714057851084,-500.0,0.00011272,2]
[323505311,1714057851094,-500.0,0.00011272,2]
[323505312,1714057851103,-1897.02,0.00011272,2]
[323505313,1714057851112,-1955.96,0.00011272,2]
[323505314,1714057851121,-500.0,0.00011272,2]
[323505315,1714057851130,-500.0,0.00011272,2]
[323505316,1714057851141,-5542.72,0.00011272,2]
[323505317,1714057851151,-500.0,0.00011272,2]
[323505318,1714057851161,-500.0,0.00011272,2]
[323505319,1714057851170,-3939.99,0.00011272,2]
[323505320,1714057851179,-500.0,0.00011272,2]
[323505321,1714057851189,-500.0,0.00011272,2]
[323505322,1714057851198,-500.0,0.00011272,2]
[323505323,1714057851207,-230.94323945,0.00011272,2]
[323505324,1714057851217,-500.0,0.00011272,2]
[323505325,1714057851226,-500.0,0.00011272,2]
[323505326,1714057851235,-500.0,0.00011272,2]
[323505327,1714057851245,-500.0,0.00011272,2]
[323505328,1714057851254,-500.0,0.00011272,2]
[323505329,1714057851263,-761.55,0.00011272,2]
[323505330,1714057851272,-3577.13,0.00011272,2]
[323505331,1714057851282,-500.0,0.00011272,2]
[323505332,1714057851291,-710.27,0.00011272,2]
[323505333,1714057851300,-500.0,0.00011272,2]
[323505334,1714057851309,-500.0,0.00011272,2]
[323505335,1714057851318,-1931.12,0.00011272,2]
[323505336,1714057851327,-517.29033168,0.00011272,2]
[323505337,1714057851337,-500.0,0.00011272,2]
[323505338,1714057851346,-500.0,0.00011272,2]
[323505339,1714057851356,-500.0,0.00011272,2]
[323505340,1714057851365,-757.5,0.00011272,2]
[323505341,1714057851374,-540.63650867,0.00011272,2]
[323505342,1714057851383,-500.0,0.00011272,2]
[323505343,1714057851396,-631.62,0.00011272,2]
[323505344,1714057851405,-500.0,0.00011272,2]
[323505345,1714057851414,-500.0,0.00011272,2]
[323505346,1714057851423,-500.0,0.00011272,2]
[323505347,1714057851434,-500.0,0.00011272,2]
[323505348,1714057851444,-1215.53,0.00011272,2]
[323505349,1714057851453,-500.0,0.00011272,2]
[323505350,1714057851462,-500.0,0.00011272,2]
[323505351,1714057851473,-610.81,0.00011272,2]
[323505352,1714057851484,-500.0,0.00011272,2]
[323505353,1714057851493,-500.0,0.00011272,2]
[323505354,1714057851503,-500.0,0.00011272,2]
[323505355,1714057851512,-500.0,0.00011272,2]
[323505356,1714057851521,-683.44,0.00011272,2]
[323505357,1714057851530,-500.0,0.00011272,2]
[323505358,1714057851540,-1542.48,0.00011272,2]
[323505359,1714057851549,-500.0,0.00011272,2]
[323505360,1714057851558,-500.0,0.00011272,2]
[323505361,1714057851568,-500.0,0.00011272,2]
[323505362,1714057851577,-500.0,0.00011272,2]
[323505363,1714057851587,-2638.39,0.00011272,2]
[323505364,1714057851596,-500.0,0.00011272,2]
[323505365,1714057851606,-500.0,0.00011272,2]
[323505366,1714057851616,-500.0,0.00011272,2]
[323505367,1714057851626,-1189.54,0.00011272,2]
[323505368,1714057851636,-2212.82,0.00011272,2]
[323505369,1714057851646,-500.0,0.00011272,2]
[323505370,1714057851656,-2000.14,0.00011272,2]
[323505371,1714057851666,-500.0,0.00011272,2]
[323505372,1714057851676,-500.0,0.00011272,2]
[323505373,1714057851686,-1392.14,0.00011272,2]
[323505374,1714057851709,-1540.31,0.00011272,2]
[323505375,1714057851729,-367.0433226,0.00011272,2]
[323505376,1714057851744,-500.0,0.00011272,2]
[323505377,1714057851761,-500.0,0.00011272,2]
[323505378,1714057851779,-500.0,0.00011272,2]
[323505379,1714057851792,-507.13363393,0.00011272,2]
[323505380,1714057851808,-3200.04,0.00011272,2]
[323505381,1714057851825,-2041.43,0.00011272,2]
[323505382,1714057851841,-500.0,0.00011272,2]
[323505383,1714057851854,-500.0,0.00011272,2]
[323505384,1714057851873,-500.0,0.00011272,2]
[323505385,1714057851892,-500.0,0.00011272,2]
[323505386,1714057851907,-500.0,0.00011272,2]
[323505387,1714057851924,-500.0,0.00011272,2]
[323505388,1714057851942,-549.36,0.00011272,2]
[323505389,1714057851960,-500.0,0.00011272,2]
[323505390,1714057851976,-500.0,0.00011272,2]
[323505391,1714057851988,-500.0,0.00011272,2]
[323505392,1714057852002,-507.27,0.00011272,2]
[323505393,1714057852017,-500.0,0.00011272,2]
[323505394,1714057852033,-588.1,0.00011272,2]
[323505395,1714057852046,-522.44,0.00011272,2]
[323505396,1714057852061,-5857.71,0.00011272,2]
[323505397,1714057852074,-500.0,0.00011272,2]
[323505398,1714057852088,-500.0,0.00011272,2]
[323505399,1714057852102,-500.0,0.00011272,2]
[323505400,1714057852117,-500.0,0.00011272,2]
[323505401,1714057852131,-500.0,0.00011272,2]
[323505402,1714057852148,-500.0,0.00011272,2]
[323505403,1714057852161,-154.84,0.00011272,2]
[323505404,1714057852175,-1509.06,0.00011272,2]
[323505405,1714057852189,-556.18,0.00011272,2]
[323505406,1714057852203,-5144.91,0.00011272,2]
[323505407,1714057852216,-503.72,0.00011272,2]
[323505408,1714057852230,-500.0,0.00011272,2]
[323505409,1714057852245,-7670.88,0.00011272,2]